Workbook

Sheet интернат гимн
A1: Согласовано | O1: Утверждено
O2: ООО "КРЕПЫШ"
O3: _______________________Ефремов В.Ю.
A5: Меню для организации питания детей в возрасте с 7-10 лет, проживающих в интернате Мензелинского муниципального района на 2 полугодие 2022-2023 учебный год.
A7: 1 день, 1 неделя
A8: № рецептуры | B8: Прием пищи, наименование блюда | C8: Масса | D8: Пищевые вещества | G8: Энергетическая ценность | H8: Витамины | M8: Минеральные вещества
D9: Белки | E9: Жиры | F9: Углеводы | H9: B1 | I9: B2 | J9: A | K9: D | L9: C | M9: Na | N9: K | O9: Ca | P9: Mg | Q9: P | R9: Fe | S9: I | T9: Se | U9: F
C10: г | D10: г | E10: г | F10: г | G10: ккал | H10: мг | I10: мг | J10: мкг рет.экв | K10: мкг | L10: мг | M10: мг | N10: мг | O10: мг | P10: мг | Q10: мг | R10: мг | S10: мкг | T10: мкг | U10: мкг
B11: Завтрак
A12: 54-1о-2020 | B12: Омлет натуральный | C12: 150 | D12: 12.68 | E12: 17.95 | F12: 3.25 | G12: 225.2 | H12: 0.07 | I12: 0.4 | J12: 182.66 | K12: 2.18 | L12: 0 | M12: 264 | N12: 180 | O12: 110 | P12: 17 | Q12: 202 | R12: 2.1 | S12: 43.65 | T12: 26 | U12: 62.62
A13: 54-23гн-2020 | B13: Кофейный напиток с молоком | C13: 200 | D13: 3.9 | E13: 2.9 | F13: 11.2 | G13: 86 | H13: 0.03 | I13: 0.13 | J13: 13.29 | K13: 0 | L13: 0.52 | M13: 38.55 | N13: 183.98 | O13: 148.32 | P13: 30.67 | Q13: 106.79 | R13: 1.06 | S13: 9 | T13: 1.76 | U13: 20
A14: 53-19з-2020 | B14: Масло сливочное (порциями) | C14: 10 | D14: 0.08 | E14: 7.25 | F14: 0.13 | G14: 66.1 | H14: 0 | I14: 0.01 | J14: 27 | K14: 0.13 | L14: 0 | M14: 1.14 | N14: 2.49 | O14: 2.11 | P14: 0 | Q14: 2.61 | R14: 0.02 | S14: 0 | T14: 0.1 | U14: 0.3
A15: Пром. | B15: Хлеб пшеничный | C15: 40 | D15: 2.3 | E15: 0.2 | F15: 14.8 | G15: 70.3 | H15: 0.03 | I15: 0.01 | J15: 0 | K15: 0 | L15: 0 | M15: 149.7 | N15: 27.9 | O15: 6 | P15: 4.2 | Q15: 19.5 | R15: 0.33 | S15: 0.96 | T15: 1.8 | U15: 4.35
A16: Пром. | B16: Яблоко | C16: 100 | D16: 0.4 | E16: 0.4 | F16: 9.8 | G16: 44.4 | H16: 0.03 | I16: 0.02 | J16: 5 | K16: 0 | L16: 10 | M16: 26 | N16: 278 | O16: 16 | P16: 9 | Q16: 11 | R16: 2.2 | S16: 2 | T16: 0.3 | U16: 8
B17: Итого за Завтрак | C17: =C12+C13+C15+C14+C16 -> 500 | D17: =D12+D13+D15+D14+D16 -> 19.36 | E17: 28.7 | F17: 39.18 | G17: 492 | H17: 0.16 | I17: 0.57 | J17: 227.95 | K17: 2.31 | L17: 10.52 | M17: 479.39 | N17: 672.37 | O17: 282.43 | P17: 60.87 | Q17: 341.9 | R17: 5.71 | S17: 55.61 | T17: 29.96 | U17: 95.27
B18: Обед
A19: 54-16з-2020 | B19: Винегрет с растительным маслом | C19: 60 | D19: 0.7 | E19: 5.4 | F19: 4 | G19: 67.1 | H19: 0.02 | I19: 0.02 | J19: 72.89 | K19: 0 | L19: 2.26 | M19: 200.99 | N19: 127.85 | O19: 12.1 | P19: 9.66 | Q19: 21.4 | R19: 0.41 | S19: 7.86 | T19: 0.13 | U19: 11.85
A20: 100 | B20: Суп картофельный с вермишелью | C20: 200 | D20: 9.2 | E20: 7.6 | F20: 16.2 | G20: 94.4 | H20: 0.1 | I20: 0 | J20: 0.2 | K20: 0 | L20: 5.3 | M20: 0 | N20: 0 | O20: 19.2 | P20: 18.7 | Q20: 46.1 | R20: 0.9 | S20: 0 | T20: 0 | U20: 0
A21: 54-4г-2020 | B21: Каша гречневая рассыпчатая | C21: 150 | D21: 8.2 | E21: 6.3 | F21: 35.9 | G21: 233.7 | H21: 0.21 | I21: 0.12 | J21: 19.19 | K21: 0.09 | L21: 0 | M21: 149.45 | N21: 219.36 | O21: 46.62 | P21: 120.16 | Q21: 180.99 | R21: 4.05 | S21: 22.28 | T21: 3.52 | U21: 16.06
A22: ном.рец №174 | B22: Тефтели мясные из говядины, полуфабрикат в соусе | C22: 75/30 | D22: 10.81 | E22: 10.4 | F22: 8.42 | G22: 168.9 | H22: 0 | I22: 0 | J22: 38.45 | K22: 0.01 | L22: 1.79 | M22: 3 | N22: 43 | O22: 45.75 | P22: 35.13 | Q22: 109 | R22: 1.6 | S22: 0 | T22: 0 | U22: 0
A23: 54-4гн-2020 | B23: Чай с молоком и сахаром | C23: 200 | D23: 1.6 | E23: 1.1 | F23: 8.6 | G23: 50.9 | H23: 0.01 | I23: 0.07 | J23: 6.9 | K23: 0 | L23: 0.3 | M23: 19.68 | N23: 81.35 | O23: 103.48 | P23: 9.92 | Q23: 46.33 | R23: 0.78 | S23: 4.5 | T23: 0.88 | U23: 10
A24: № Т/К 399 | B24: Блины фаршированные сгущенным молоком П/Ф (70гр) 2 шт | C24: 140 | D24: 5.6 | E24: 7.7 | F24: 37.8 | G24: 245 | H24: 0.16 | I24: 0 | J24: 0 | K24: 0 | L24: 0 | M24: 0 | N24: 0 | O24: 196.9 | P24: 38.48 | Q24: 85 | R24: 0.96 | S24: 0 | T24: 0 | U24: 0
A25: Пром. | B25: Хлеб ржаной | C25: 20 | D25: 1.3 | E25: 0.2 | F25: 6.7 | G25: 34.2 | H25: 0.04 | I25: 0.02 | J25: 0 | K25: 0 | L25: 0 | M25: 122 | N25: 49 | O25: 7 | P25: 9.4 | Q25: 31.6 | R25: 0.78 | S25: 0 | T25: 6.18 | U25: 0
B26: Итого за Обед | C26: 875 | D26: =D19+D20+D21+D22+D23+D24+D25 -> 37.41 | E26: 38.7 | F26: 117.62 | G26: 894.2 | H26: 0.54 | I26: 0.23 | J26: 137.63 | K26: 0.1 | L26: 9.65 | M26: 495.12 | N26: 520.56 | O26: 431.05 | P26: 241.45 | Q26: 520.42 | R26: 9.48 | S26: 34.64 | T26: 10.71 | U26: 37.91
B27: Полдник
A28: Пром. | B28: Сок персиковый | C28: 200 | D28: 0.6 | E28: 0 | F28: 33 | G28: 134.4 | H28: 0.03 | I28: 0.06 | J28: 60 | K28: 0 | L28: 5 | M28: 9 | N28: 252 | O28: 9 | P28: 21 | Q28: 26 | R28: 0.3 | S28: 0 | T28: 0 | U28: 0
A29: Пром. | B29: Пряник | C29: 30 | D29: 1.8 | E29: 1.4 | F29: 22.5 | G29: 109.8 | H29: 0.02 | I29: 0.01 | J29: 0 | K29: 0 | L29: 0 | M29: 0.6 | N29: 21.3 | O29: 3.3 | P29: 2.7 | Q29: 15 | R29: 0.24 | S29: 0 | T29: 0 | U29: 0
B30: Итого за Полдник | C30: =C28+C29 -> 230 | D30: =D28+D29 -> 2.4 | E30: 1.4 | F30: 55.5 | G30: 244.2 | H30: 0.05 | I30: 0.07 | J30: 60 | K30: 0 | L30: 5 | M30: 9.6 | N30: 273.3 | O30: 12.3 | P30: 23.7 | Q30: 41 | R30: 0.54 | S30: 0 | T30: 0 | U30: 0
B31: Ужин
A32: 54-1г-2020 | B32: Макароны отварные | C32: 150 | D32: 5.3 | E32: 4.9 | F32: 32.8 | G32: 196.8 | H32: 0.06 | I32: 0.02 | J32: 18.36 | K32: 0.09 | L32: 0 | M32: 149.04 | N32: 53.8 | O32: 105.83 | P32: 7.19 | Q32: 40.7 | R32: 0.73 | S32: 20.77 | T32: 0.06 | U32: 11.92
A33: 54-2м-2020 | B33: Гуляш из говядины | C33: 60/40 | D33: 13.76 | E33: 13.91 | F33: 3.9 | G33: 195.8 | H33: 0.04 | I33: 0.12 | J33: 25.46 | K33: 0.07 | L33: 1 | M33: 122 | N33: 322 | O33: 55 | P33: 23 | Q33: 166 | R33: 2.5 | S33: 17.06 | T33: 0.4 | U33: 62.71
A34: 54-1хн-2020 | B34: Компот из смеси сухофруктов | C34: 200 | D34: 0.5 | E34: 0 | F34: 19.8 | G34: 81 | H34: 0 | I34: 0 | J34: 15 | K34: 0 | L34: 0.02 | M34: 0.05 | N34: 0.17 | O34: 108.08 | P34: 2.11 | Q34: 4.31 | R34: 0.08 | S34: 0 | T34: 0 | U34: 0
A35: Пром. | B35: Хлеб пшеничный | C35: 30 | D35: 2.3 | E35: 0.2 | F35: 14.8 | G35: 70.3 | H35: 0.03 | I35: 0.01 | J35: 0 | K35: 0 | L35: 0 | M35: 149.7 | N35: 27.9 | O35: 6 | P35: 4.2 | Q35: 19.5 | R35: 0.33 | S35: 0.96 | T35: 1.8 | U35: 4.35
A36: Пром. | B36: Хлеб ржаной | C36: 20 | D36: 1.3 | E36: 0.2 | F36: 6.7 | G36: 34.2 | H36: 0.04 | I36: 0.02 | J36: 0 | K36: 0 | L36: 0 | M36: 122 | N36: 49 | O36: 7 | P36: 9.4 | Q36: 31.6 | R36: 0.78 | S36: 0 | T36: 6.18 | U36: 0
B37: Итого за Ужин | C37: 500 | D37: =D32+D33+D34+D35+D16+D39+D36 -> 29.36 | E37: =E32+E33+E34+E35+E16+E39+E36 -> 24.61 | F37: 96.2 | G37: 724.3 | H37: 0.23 | I37: 0.4 | J37: 90.22 | K37: 0.16 | L37: 11.02 | M37: 644.79 | N37: 972.87 | O37: 515.91 | P37: 78.9 | Q37: 433.11 | R37: 6.82 | S37: 58.79 | T37: 10.54 | U37: 126.98
B38: Ужин 2
A39: Пром. | B39: Ряженка 2.5% | C39: 200 | D39: 5.8 | E39: 5 | F39: 8.4 | G39: 101.8 | H39: 0.03 | I39: 0.21 | J39: 26.4 | K39: 0 | L39: 0 | M39: 76 | N39: 242 | O39: 218 | P39: 24 | Q39: 160 | R39: 0.2 | S39: 18 | T39: 1.8 | U39: 40
B40: Итого за ужин 2 | C40: =C39 -> 200 | D40: =D39 -> 5.8 | E40: 5 | F40: 8.4 | G40: 101.8 | H40: 0.03 | I40: 0.21 | J40: 26.4 | K40: 0 | L40: 0 | M40: 76 | N40: 242 | O40: 218 | P40: 24 | Q40: 160 | R40: 0.2 | S40: 18 | T40: 1.8 | U40: 40
B41: Итого за день | C41: =C17+C26+C30+C37+C40 -> 2305 | D41: 94.33 | E41: 98.41 | F41: 316.9 | G41: 2456.5 | H41: 1.01 | I41: 1.48 | J41: 542.2 | K41: 2.57 | L41: 36.19 | M41: 1704.9 | N41: 2681.1 | O41: 1459.69 | P41: 428.92 | Q41: 1496.43 | R41: 22.75 | S41: 167.04 | T41: 53.01 | U41: 300.16
A43: 2 день, 1 неделя
A44: № рецептуры | B44: Прием пищи, наименование блюда | C44: Масса | D44: Пищевые вещества | G44: Энергетическая ценность | H44: Витамины | M44: Минеральные вещества
D45: Белки | E45: Жиры | F45: Углеводы | H45: B1 | I45: B2 | J45: A | K45: D | L45: C | M45: Na | N45: K | O45: Ca | P45: Mg | Q45: P | R45: Fe | S45: I | T45: Se | U45: F
C46: г | D46: г | E46: г | F46: г | G46: ккал | H46: мг | I46: мг | J46: мкг рет.экв | K46: мкг | L46: мг | M46: мг | N46: мг | O46: мг | P46: мг | Q46: мг | R46: мг | S46: мкг | T46: мкг | U46: мкг
B47: Завтрак
A48: 54-1з-2020 | B48: Сыр твердых сортов в нарезке | C48: 10 | D48: 3.48 | E48: 4.42 | F48: 0 | G48: 53.7 | H48: 0 | I48: 0.04 | J48: 23.4 | K48: 0.14 | L48: 0.04 | M48: 92.34 | N48: 10.96 | O48: 116.16 | P48: 4.57 | Q48: 65.25 | R48: 0.13 | S48: 0 | T48: 1.9 | U48: 0
A49: 54-22к-2020 | B49: Каша жидкая молочная овсяная | C49: 200 | D49: 6.82 | E49: 7.44 | F49: 24.61 | G49: 192.6 | H49: 0.14 | I49: 0.17 | J49: 29.08 | K49: 0.07 | L49: 1 | M49: 348 | N49: 237 | O49: 164 | P49: 45 | Q49: 188 | R49: 1.1 | S49: 52.01 | T49: 9.9 | U49: 49.61
A50: 54-2гн-2020 | B50: Чай с сахаром | C50: 200 | D50: 0.2 | E50: 0 | F50: 6.4 | G50: 26.8 | H50: 0 | I50: 0.01 | J50: 0.3 | K50: 0 | L50: 0.04 | M50: 0.68 | N50: 20.76 | O50: 66.08 | P50: 3.83 | Q50: 7.18 | R50: 0.73 | S50: 0 | T50: 0 | U50: 0
A51: Пром. | B51: Хлеб пшеничный | C51: 30 | D51: 2.3 | E51: 0.2 | F51: 14.8 | G51: 70.3 | H51: 0.03 | I51: 0.01 | J51: 0 | K51: 0 | L51: 0 | M51: 149.7 | N51: 27.9 | O51: 6 | P51: 4.2 | Q51: 19.5 | R51: 0.33 | S51: 0.96 | T51: 1.8 | U51: 4.35
A52: Пром. | B52: Хлеб ржаной | C52: 20 | D52: 1.3 | E52: 0.2 | F52: 6.7 | G52: 34.2 | H52: 0.04 | I52: 0.02 | J52: 0 | K52: 0 | L52: 0 | M52: 122 | N52: 49 | O52: 7 | P52: 9.4 | Q52: 31.6 | R52: 0.78 | S52: 0 | T52: 6.18 | U52: 0
B53: Итого за Завтрак | C53: =C48+C49+C50+C51+C52 -> 460 | D53: =D48+D49+D50+D51+D52 -> 14.1 | E53: 12.26 | F53: 52.51 | G53: 377.6 | H53: 0.21 | I53: 0.25 | J53: 52.78 | K53: 0.21 | L53: 1.08 | M53: 712.72 | N53: 345.62 | O53: 359.24 | P53: 67 | Q53: 311.53 | R53: 3.07 | S53: 52.97 | T53: 19.78 | U53: 53.96
B54: Обед
A55: № Т/к 15 | B55: Морковь отварная порциями | C55: 60 | D55: 0.8 | E55: 0.1 | F55: 4.1 | G55: 21 | H55: 0 | I55: 0 | J55: 1.5 | K55: 0 | L55: 3 | M55: 0 | N55: 0 | O55: 30.6 | P55: 22.8 | Q55: 33 | R55: 0.6 | S55: 0 | T55: 0 | U55: 0
A56: 54-1с-2020 | B56: Суп щи | C56: 200 | D56: 4.66 | E56: 5.63 | F56: 5.73 | G56: 92.2 | H56: 0.01 | I56: 0.03 | J56: 104.94 | K56: 0 | L56: 10 | M56: 98 | N56: 184 | O56: 37 | P56: 13 | Q56: 30 | R56: 0.4 | S56: 15.25 | T56: 0.2 | U56: 14.76
A57: 54-6г-2020 | B57: Рис отварной | C57: 150 | D57: 3.6 | E57: 4.8 | F57: 36.4 | G57: 203.5 | H57: 0.03 | I57: 0.02 | J57: 18.36 | K57: 0.09 | L57: 0 | M57: 152.8 | N57: 46.55 | O57: 106.65 | P57: 23.59 | Q57: 72.57 | R57: 0.49 | S57: 20.76 | T57: 7.24 | U57: 27.19
A58: №Т/К 272 | B58: Котлета мясная с соусом и овощами (мексик.смесь) | C58: 65/35/35 | D58: 11.28 | E58: 10.37 | F58: 12.4 | G58: 179.2 | H58: 0 | I58: 0 | J58: 0.1 | K58: 0 | L58: 1.8 | M58: 0 | N58: 0 | O58: 18.9 | P58: 22.1 | Q58: 115.5 | R58: 1.9 | S58: 0 | T58: 0 | U58: 0
A59: 54-1хн | B59: Компот из замороженной компотной смеси | C59: 200 | D59: 0.23 | E59: 0.11 | F59: 10.15 | G59: 42.5 | H59: 0 | I59: 0 | J59: 2.53 | K59: 0 | L59: 2 | M59: 8 | N59: 91 | O59: 64 | P59: 6 | Q59: 7 | R59: 0.5 | S59: 0.82 | T59: 0.1 | U59: 2.34
A60: Пром. | B60: Хлеб пшеничный | C60: 20 | D60: 1.52 | E60: 0.16 | F60: 9.84 | G60: 46.9 | H60: 0.02 | I60: 0.01 | J60: 0 | K60: 0 | L60: 0 | M60: 100 | N60: 19 | O60: 4 | P60: 3 | Q60: 13 | R60: 0.2 | S60: 0.64 | T60: 1.2 | U60: 2.9
B61: Итого за Обед | C61: 765 | D61: =SUM(D55:D60) -> 22.09 | E61: 21.17 | F61: 78.62 | G61: =SUM(G55:G60) -> 585.3 | H61: =SUM(H55:H60) -> 0.06 | I61: 0.06 | J61: 127.43 | K61: 0.09 | L61: 16.8 | M61: 358.8 | N61: 340.55 | O61: 261.15 | P61: 90.49 | Q61: 271.07 | R61: 4.09 | S61: 37.47 | T61: 8.74 | U61: 47.19
B62: Полдник
A63: Пром. | B63: Вафли с фруктовыми начинками | C63: 30 | D63: 0.84 | E63: 0.99 | F63: 23.19 | G63: 105 | H63: 0.01 | I63: 0.01 | J63: 0.54 | K63: 0 | L63: 0 | M63: 11.17 | N63: 34.86 | O63: 4.22 | P63: 2.61 | Q63: 9.4 | R63: 0.39 | S63: 0 | T63: 0 | U63: 0
A64: Пром. | B64: Сок яблочный | C64: 200 | D64: 1 | E64: 0.2 | F64: 20.2 | G64: 86.6 | H64: 0.02 | I64: 0.02 | J64: 0 | K64: 0 | L64: 4 | M64: 12 | N64: 240 | O64: 14 | P64: 8 | Q64: 14 | R64: 2.8 | S64: 0 | T64: 0 | U64: 0
B65: Итого за Полдник | C65: =C63+C64 -> 230 | D65: =D63+D64 -> 1.84 | E65: 1.19 | F65: 43.39 | G65: 191.6 | H65: 0.03 | I65: 0.03 | J65: 0.54 | K65: 0 | L65: 4 | M65: 23.17 | N65: 274.86 | O65: 18.22 | P65: 10.61 | Q65: 23.4 | R65: 3.19 | S65: 0 | T65: 0 | U65: 0
B66: Ужин
A67: 54-6т-2020 | B67: Сырники | C67: 160 | D67: 31.4 | E67: 9.2 | F67: 26.3 | G67: 313.2 | H67: 0.07 | I67: 0.33 | J67: 46.02 | K67: 0.15 | L67: 0.3 | M67: 146.88 | N67: 169.42 | O67: 219.92 | P67: 33.17 | Q67: 304.73 | R67: 0.87 | S67: 27.47 | T67: 40.06 | U67: 54.51
A68: 54-33хн-2020 | B68: Напиток апельсиновый | C68: 200 | D68: 0.2 | E68: 0 | F68: 8 | G68: 33 | H68: 0.01 | I68: 0.01 | J68: 1.06 | K68: 0 | L68: 5.28 | M68: 2.23 | N68: 36.15 | O68: 74.47 | P68: 2.49 | Q68: 4.4 | R68: 0.08 | S68: 0.44 | T68: 0.1 | U68: 3.74
A69: Пром. | B69: Хлеб пшеничный | C69: 30 | D69: 2.3 | E69: 0.2 | F69: 14.8 | G69: 70.3 | H69: 0.03 | I69: 0.01 | J69: 0 | K69: 0 | L69: 0 | M69: 149.7 | N69: 27.9 | O69: 6 | P69: 4.2 | Q69: 19.5 | R69: 0.33 | S69: 0.96 | T69: 1.8 | U69: 4.35
A70: 451 СПБ 2008 | B70: Пирожок печеный с картошкой | C70: 100 | D70: 1.6 | E70: 0.2 | F70: 10.3 | G70: 49.6 | H70: 0.03 | I70: 0.01 | J70: 0 | K70: 0 | L70: 0 | M70: 90.75 | N70: 27.75 | O70: 4.5 | P70: 6.9 | Q70: 18.15 | R70: 0.44 | S70: 0 | T70: 0 | U70: 0
B71: Итого за Ужин | C71: =C67+C68+C69+C70 -> 490 | D71: =D67+D68+D69+D70 -> 35.5 | E71: 9.6 | F71: 59.4 | G71: 466.1 | H71: 0.14 | I71: 0.36 | J71: 47.08 | K71: 0.15 | L71: 5.58 | M71: 389.56 | N71: 261.22 | O71: 304.89 | P71: 46.76 | Q71: 346.78 | R71: 1.72 | S71: 28.87 | T71: 41.96 | U71: 62.6
B72: Ужин 2
A73: Пром. | B73: Кефир 3.2% | C73: 200 | D73: 5.8 | E73: 5 | F73: 8 | G73: 100.2 | H73: 0.06 | I73: 0.27 | J73: 26.4 | K73: 0 | L73: 1 | M73: 76 | N73: 242 | O73: 211 | P73: 24 | Q73: 157 | R73: 0.2 | S73: 18 | T73: 3.5 | U73: 40
B74: Итого за ужин 2 | C74: =C73 -> 200 | D74: =D73 -> 5.8 | E74: 5 | F74: 8 | G74: 100.2 | H74: 0.06 | I74: 0.27 | J74: 26.4 | K74: 0 | L74: 1 | M74: 76 | N74: 242 | O74: 211 | P74: 24 | Q74: 157 | R74: 0.2 | S74: 18 | T74: 3.5 | U74: =U73 -> 40
B75: Итого за день | C75: =C53+C61+C65+C71+C74 -> 2145 | D75: 79.33 | E75: 49.22 | F75: 241.92 | G75: 1720.8 | H75: 0.5 | I75: 0.97 | J75: 254.23 | K75: 0.45 | L75: 28.46 | M75: 1560.25 | N75: 1464.25 | O75: 1154.5 | P75: 238.86 | Q75: 1109.78 | R75: 12.27 | S75: 137.31 | T75: 73.98 | U75: 203.75
A77: 3 день, 1 неделя
A78: № рецептуры | B78: Прием пищи, наименование блюда | C78: Масса | D78: Пищевые вещества | G78: Энергетическая ценность | H78: Витамины | M78: Минеральные вещества
D79: Белки | E79: Жиры | F79: Углеводы | H79: B1 | I79: B2 | J79: A | K79: D | L79: C | M79: Na | N79: K | O79: Ca | P79: Mg | Q79: P | R79: Fe | S79: I | T79: Se | U79: F
C80: г | D80: г | E80: г | F80: г | G80: ккал | H80: мг | I80: мг | J80: мкг рет.экв | K80: мкг | L80: мг | M80: мг | N80: мг | O80: мг | P80: мг | Q80: мг | R80: мг | S80: мкг | T80: мкг | U80: мкг
B81: Завтрак
A82: 53-19з-2020 | B82: Масло сливочное (порциями) | C82: 10 | D82: 0.08 | E82: 7.25 | F82: 0.13 | G82: 66.1 | H82: 0 | I82: 0.01 | J82: 27 | K82: 0.13 | L82: 0 | M82: 1.14 | N82: 2.49 | O82: 2.11 | P82: 0 | Q82: 2.61 | R82: 0.02 | S82: 0 | T82: 0.1 | U82: 0.3
A83: 54-21к-2020 | B83: Каша вязкая молочная ячневая | C83: 150 | D83: 5.4 | E83: 7 | F83: 25.6 | G83: 186.8 | H83: 0.09 | I83: 0.13 | J83: 31.14 | K83: 0.1 | L83: 0.43 | M83: 256.67 | N83: 158.61 | O83: 127.09 | P83: 24.68 | Q83: 166.41 | R83: 0.63 | S83: 37.43 | T83: 12.57 | U83: 46.68
A84: 54-1хн-2020 | B84: Компот из смеси сухофруктов | C84: 200 | D84: 0.5 | E84: 0 | F84: 19.8 | G84: 81 | H84: 0 | I84: 0 | J84: 15 | K84: 0 | L84: 0.02 | M84: 0.05 | N84: 0.17 | O84: 108.08 | P84: 2.11 | Q84: 4.31 | R84: 0.08 | S84: 0 | T84: 0 | U84: 0
A85: Пром. | B85: Хлеб пшеничный | C85: 40 | D85: 2.3 | E85: 0.2 | F85: 14.8 | G85: 70.3 | H85: 0.03 | I85: 0.01 | J85: 0 | K85: 0 | L85: 0 | M85: 149.7 | N85: 27.9 | O85: 6 | P85: 4.2 | Q85: 19.5 | R85: 0.33 | S85: 0.96 | T85: 1.8 | U85: 4.35
B86: Итого за Завтрак | C86: =C82+C83+C84+C85 -> 400 | D86: =D82+D83+D84+D85 -> 8.28 | E86: 14.45 | F86: 60.33 | G86: 404.2 | H86: 0.12 | I86: 0.15 | J86: 73.14 | K86: 0.23 | L86: 0.45 | M86: 407.56 | N86: 189.17 | O86: 243.28 | P86: 30.99 | Q86: 192.83 | R86: 1.06 | S86: 38.39 | T86: 14.47 | U86: 51.33
B87: Обед
A88: № т/к 33 | B88: Свекла отварная порциями | C88: 60 | D88: 0.9 | E88: 0.1 | F88: 5 | G88: 24.1 | H88: 0 | I88: 0 | J88: 0 | K88: 0 | L88: 2.4 | M88: 0 | N88: 0 | O88: 21.6 | P88: 11.8 | Q88: 23.4 | R88: 0.7 | S88: 0 | T88: 0 | U88: 0
A89: 54-11с-2020 | B89: Суп крестьянский с крупой (крупа рисовая) | C89: 200 | D89: 5 | E89: 5.8 | F89: 11.3 | G89: 116.9 | H89: 0.04 | I89: 0.04 | J89: 103.29 | K89: 0 | L89: 6.42 | M89: 96.69 | N89: 195.41 | O89: 25.55 | P89: 15.32 | Q89: 40.39 | R89: 0.5 | S89: 15.37 | T89: 1.25 | U89: 20.68
A90: 54-1г-2020 | B90: Макароны отварные | C90: 150 | D90: 5.3 | E90: 4.9 | F90: 32.8 | G90: 196.8 | H90: 0.06 | I90: 0.02 | J90: 18.36 | K90: 0.09 | L90: 0 | M90: 149.04 | N90: 53.8 | O90: 105.83 | P90: 7.19 | Q90: 40.7 | R90: 0.73 | S90: 20.77 | T90: 0.06 | U90: 11.92
A91: №243 | B91: Сосиски говяжьи отварные, п/ф (2 шт) | C91: 100 | D91: 8.6 | E91: 9.27 | F91: 6.5 | G91: 202.15 | H91: 0 | I91: 0 | J91: 0.08 | K91: 0.01 | L91: 0 | M91: 0 | N91: 0 | O91: 7.44 | P91: 15.51 | Q91: 137.39 | R91: 1.74 | S91: 0 | T91: 0 | U91: 0
A92: 54-3гн-2020 | B92: Чай с лимоном и сахаром | C92: 207 | D92: 0.2 | E92: 0.1 | F92: 6.6 | G92: 27.9 | H92: 0 | I92: 0.01 | J92: 0.38 | K92: 0 | L92: 1.16 | M92: 1.26 | N92: 30.23 | O92: 67 | P92: 4.56 | Q92: 8.52 | R92: 0.77 | S92: 0.01 | T92: 0.02 | U92: 0.7
A93: Пром. | B93: Хлеб ржаной | C93: 20 | D93: 1.3 | E93: 0.2 | F93: 6.7 | G93: 34.2 | H93: 0.04 | I93: 0.02 | J93: 0 | K93: 0 | L93: 0 | M93: 122 | N93: 49 | O93: 7 | P93: 9.4 | Q93: 31.6 | R93: 0.78 | S93: 0 | T93: 6.18 | U93: 0
A94: Пром. | B94: Хлеб пшеничный | C94: 20 | D94: 1.52 | E94: 0.16 | F94: 9.84 | G94: 46.9 | H94: 0.02 | I94: 0.01 | J94: 0 | K94: 0 | L94: 0 | M94: 100 | N94: 19 | O94: 4 | P94: 3 | Q94: 13 | R94: 0.2 | S94: 0.64 | T94: 1.2 | U94: 2.9
B95: Итого за Обед | C95: =C88+C89+C90+C91+C92+C93+C94 -> 757 | D95: =D88+D89+D90+D91+D92+D93+D94 -> 22.82 | E95: 20.53 | F95: 78.74 | G95: 648.95 | H95: 0.16 | I95: 0.1 | J95: 122.11 | K95: 0.1 | L95: 9.98 | M95: 468.99 | N95: 347.44 | O95: 238.42 | P95: 66.78 | Q95: 295 | R95: 5.42 | S95: 36.79 | T95: 8.71 | U95: 36.2
B96: Полдник
A97: Пром. | B97: Сок персиковый | C97: 200 | D97: 0.6 | E97: 0 | F97: 33 | G97: 134.4 | H97: 0.03 | I97: 0.06 | J97: 60 | K97: 0 | L97: 5 | M97: 9 | N97: 252 | O97: 9 | P97: 21 | Q97: 26 | R97: 0.3 | S97: 0 | T97: 0 | U97: 0
A98: Пром. | B98: Сушка простая | C98: 30 | D98: 3.27 | E98: 0.39 | F98: 20.64 | G98: 99.1 | H98: 0.05 | I98: 0.02 | J98: 0 | K98: 0 | L98: 0 | M98: 137.94 | N98: 46.06 | O98: 7.92 | P98: 12.01 | Q98: 31.58 | R98: 0.76 | S98: 0 | T98: 0 | U98: 0
B99: Итого за Полдник | C99: =C97+C98 -> 230 | D99: =D97+D98 -> 3.87 | E99: 0.39 | F99: 53.64 | G99: 233.5 | H99: 0.08 | I99: 0.08 | J99: 60 | K99: 0 | L99: 5 | M99: 146.94 | N99: 298.06 | O99: 16.92 | P99: 33.01 | Q99: 57.58 | R99: 1.06 | S99: 0 | T99: 0 | U99: 0
B100: Ужин
A101: 54-22м-2020 | B101: Рагу из курицы | C101: 160/60 | D101: 23.05 | E101: 7.74 | F101: 19.27 | G101: 239 | H101: 0.15 | I101: 0.12 | J101: 285.64 | K101: 0 | L101: 13 | M101: 310 | N101: 812 | O101: 34 | P101: 102 | Q101: 213 | R101: 2.3 | S101: 47.26 | T101: 18.7 | U101: 172
A102: Пром. | B102: Апельсин | C102: 175 | D102: 1.57 | E102: 0.35 | F102: 14.17 | G102: 66.1 | H102: 0.05 | I102: 0.04 | J102: 8.4 | K102: 0 | L102: 42 | M102: 17 | N102: 286 | O102: 52 | P102: 20 | Q102: 35 | R102: 0.5 | S102: 3.5 | T102: 0.8 | U102: 29.75
A103: Пром. | B103: Хлеб пшеничный | C103: 30 | D103: 2.3 | E103: 0.2 | F103: 14.8 | G103: 70.3 | H103: 0.03 | I103: 0.01 | J103: 0 | K103: 0 | L103: 0 | M103: 149.7 | N103: 27.9 | O103: 6 | P103: 4.2 | Q103: 19.5 | R103: 0.33 | S103: 0.96 | T103: 1.8 | U103: 4.35
A104: 54-4гн-2020 | B104: Чай с молоком и сахаром | C104: 200 | D104: 1.6 | E104: 1.1 | F104: 8.6 | G104: 50.9 | H104: 0.01 | I104: 0.07 | J104: 6.9 | K104: 0 | L104: 0.3 | M104: 19.68 | N104: 81.35 | O104: 103.48 | P104: 9.92 | Q104: 46.33 | R104: 0.78 | S104: 4.5 | T104: 0.88 | U104: 10
B105: Итого за Ужин | C105: 625 | D105: =D101+D107+D103+D104 -> 32.75 | E105: 14.04 | F105: 51.07 | G105: 462 | H105: 0.22 | I105: 0.41 | J105: 318.94 | K105: 0 | L105: 13.3 | M105: 555.38 | N105: 1163.25 | O105: 361.48 | P105: 140.12 | Q105: 438.83 | R105: 3.61 | S105: 70.72 | T105: 23.18 | U105: 226.35
B106: Ужин 2
A107: Пром. | B107: Ряженка 2.5% | C107: 200 | D107: 5.8 | E107: 5 | F107: 8.4 | G107: 101.8 | H107: 0.03 | I107: 0.21 | J107: 26.4 | K107: 0 | L107: 0 | M107: 76 | N107: 242 | O107: 218 | P107: 24 | Q107: 160 | R107: 0.2 | S107: 18 | T107: 1.8 | U107: 40
B108: Итого за ужин 2 | C108: =C107 -> 200 | D108: =D107 -> 5.8 | E108: 5 | F108: 8.4 | G108: 101.8 | H108: 0.03 | I108: 0.21 | J108: 26.4 | K108: 0 | L108: 0 | M108: 76 | N108: 242 | O108: 218 | P108: 24 | Q108: 160 | R108: 0.2 | S108: 18 | T108: 1.8 | U108: 40
B109: Итого за день | C109: =C86+C95+C99+C105+C108 -> 2212 | D109: =D86+D95+D99+D105+D108 -> 73.52 | E109: 54.41 | F109: 252.18 | G109: 1850.45 | H109: 0.61 | I109: 0.95 | J109: 600.59 | K109: 0.33 | L109: 28.73 | M109: 1654.87 | N109: 2239.92 | O109: 1078.1 | P109: 294.9 | Q109: 1144.24 | R109: 11.35 | S109: 163.9 | T109: 48.16 | U109: 353.88
A111: 4 день, 1 неделя
A112: № рецептуры | B112: Прием пищи, наименование блюда | C112: Масса | D112: Пищевые вещества | G112: Энергетическая ценность | H112: Витамины | M112: Минеральные вещества
D113: Белки | E113: Жиры | F113: Углеводы | H113: B1 | I113: B2 | J113: A | K113: D | L113: C | M113: Na | N113: K | O113: Ca | P113: Mg | Q113: P | R113: Fe | S113: I | T113: Se | U113: F
C114: г | D114: г | E114: г | F114: г | G114: ккал | H114: мг | I114: мг | J114: мкг рет.экв | K114: мкг | L114: мг | M114: мг | N114: мг | O114: мг | P114: мг | Q114: мг | R114: мг | S114: мкг | T114: мкг | U114: мкг
B115: Завтрак
A116: 54-1з-2020 | B116: Сыр твердых сортов в нарезке | C116: 10 | D116: 2.8 | E116: 3.5 | F116: 0 | G116: 43 | H116: 0 | I116: 0.04 | J116: 31.2 | K116: 0.12 | L116: 0.08 | M116: 97.2 | N116: 10.56 | O116: 105.6 | P116: 4.2 | Q116: 60 | R116: 0.12 | S116: 0 | T116: 1.74 | U116: 0
A117: 54-13к-2020 | B117: Каша вязкая молочная пшеничная | C117: 150 | D117: 6.1 | E117: 6.9 | F117: 29 | G117: 202.7 | H117: 0.1 | I117: 0.13 | J117: 30.74 | K117: 0.1 | L117: 0.41 | M117: 256.57 | N117: 169.91 | O117: 113.68 | P117: 29.4 | Q117: 154.74 | R117: 1.64 | S117: 37.16 | T117: 24.8 | U117: 16.11
A118: 54-2гн-2020 | B118: Чай с сахаром | C118: 200 | D118: 0.2 | E118: 0 | F118: 6.4 | G118: 26.8 | H118: 0 | I118: 0.01 | J118: 0.3 | K118: 0 | L118: 0.04 | M118: 0.68 | N118: 20.76 | O118: 66.08 | P118: 3.83 | Q118: 7.18 | R118: 0.73 | S118: 0 | T118: 0 | U118: 0
A119: Пром. | B119: Хлеб пшеничный | C119: 40 | D119: 2.3 | E119: 0.2 | F119: 14.8 | G119: 70.3 | H119: 0.03 | I119: 0.01 | J119: 0 | K119: 0 | L119: 0 | M119: 149.7 | N119: 27.9 | O119: 6 | P119: 4.2 | Q119: 19.5 | R119: 0.33 | S119: 0.96 | T119: 1.8 | U119: 4.35
B120: Итого за Завтрак | C120: =C116+C117+C118+C119 -> 400 | D120: =D116+D117+D118+D119 -> 11.4 | E120: 10.6 | F120: 50.2 | G120: 342.8 | H120: 0.13 | I120: 0.19 | J120: 62.24 | K120: 0.22 | L120: 0.53 | M120: 504.15 | N120: 229.13 | O120: 291.36 | P120: 41.63 | Q120: 241.42 | R120: 2.82 | S120: 38.12 | T120: 28.34 | U120: 20.46
B121: Обед
A122: № Т/к 15 | B122: Морковь отварная порциями | C122: 60 | D122: 0.8 | E122: 0.1 | F122: 4.1 | G122: 21 | H122: 0 | I122: 0 | J122: 1.5 | K122: 0 | L122: 3 | M122: 0 | N122: 0 | O122: 30.6 | P122: 22.8 | Q122: 33 | R122: 0.6 | S122: 0 | T122: 0 | U122: 0
A123: 54-6с-2020 | B123: Суп картофельный с клецками | C123: 200 | D123: 4.6 | E123: 3.3 | F123: 11.4 | G123: 93.6 | H123: 0.05 | I123: 0.04 | J123: 101.43 | K123: 0.05 | L123: 3.69 | M123: 58.01 | N123: 222.12 | O123: 13.28 | P123: 12.74 | Q123: 35.97 | R123: 0.54 | S123: 10.28 | T123: 0.94 | U123: 21.22
A124: 54-11г-2020 | B124: Картофельное пюре | C124: 150 | D124: 3.1 | E124: 5.3 | F124: 19.8 | G124: 139.4 | H124: 0.12 | I124: 0.11 | J124: 23.8 | K124: 0.09 | L124: 10.2 | M124: 161.78 | N124: 624.83 | O124: 39.49 | P124: 28.23 | Q124: 84.47 | R124: 1.03 | S124: 28.46 | T124: 0.78 | U124: 42.79
A125: № рец. 290 | B125: Птица тушеная в соусе | C125: 50/50 | D125: 8.65 | E125: 6.67 | F125: 3.9 | G125: 145 | H125: 0.1 | I125: 0 | J125: 0 | K125: 0 | L125: 1.5 | M125: 0 | N125: 0 | O125: 26.4 | P125: 16.6 | Q125: 115.3 | R125: 0.9 | S125: 0 | T125: 0 | U125: 0
A126: 54-5хн | B126: Компот из яблок и вишни | C126: 200 | D126: 0.23 | E126: 0.11 | F126: 10.15 | G126: 42.5 | H126: 0 | I126: 0 | J126: 2.53 | K126: 0 | L126: 2 | M126: 8 | N126: 91 | O126: 64 | P126: 6 | Q126: 7 | R126: 0.5 | S126: 0.82 | T126: 0.1 | U126: 4.18
A127: Пром. | B127: Хлеб пшеничный | C127: 20 | D127: 1.52 | E127: 0.16 | F127: 9.84 | G127: 46.9 | H127: 0.02 | I127: 0.01 | J127: 0 | K127: 0 | L127: 0 | M127: 100 | N127: 19 | O127: 4 | P127: 3 | Q127: 13 | R127: 0.2 | S127: 0.64 | T127: 1.2 | U127: 2.9
A128: Пром. | B128: Банан | C128: 200 | D128: 3.6 | E128: 1.2 | F128: 29.5 | G128: 106.8 | H128: 0.07 | I128: 0.1 | J128: 28.8 | K128: 0 | L128: 10 | M128: 57 | N128: 693 | O128: 17 | P128: 88 | Q128: 58 | R128: 1.3 | S128: 0.12 | T128: 2.1 | U128: 5.28
B129: Итого за Обед | C129: 970 | D129: =D122+D123+D124+D125+D126+D127+D128 -> 22.5 | E129: =E122+E123+E124+E125+E126+E127+E128 -> 16.84 | F129: =F122+F123+F124+F125+F126+F127+F128 -> 88.69 | G129: 595.2 | H129: 0.36 | I129: 0.26 | J129: 158.06 | K129: 0.14 | L129: 30.39 | M129: 384.79 | N129: 1649.95 | O129: 194.77 | P129: 177.37 | Q129: 346.74 | R129: 5.07 | S129: 40.32 | T129: 5.12 | U129: 76.37
B130: Полдник
A131: Пром. | B131: Булочка Ярославская (хлебзавод) 50 гр | C131: 50 | D131: 3.85 | E131: 1.2 | F131: 26.7 | G131: 133 | H131: 0.06 | I131: 0.01 | J131: 0 | K131: 0 | L131: 0 | M131: 219 | N131: 49 | O131: 10 | P131: 7 | Q131: 34 | R131: 0.6 | S131: 0 | T131: 0 | U131: 0
A132: Пром. | B132: Сок яблочный | C132: 200 | D132: 1 | E132: 0.2 | F132: 20.2 | G132: 86.6 | H132: 0.02 | I132: 0.02 | J132: 0 | K132: 0 | L132: 4 | M132: 12 | N132: 240 | O132: 14 | P132: 8 | Q132: 14 | R132: 2.8 | S132: 0 | T132: 0 | U132: 0
B133: Итого за Полдник | C133: =C131+C132 -> 250 | D133: =D131+D132 -> 4.85 | E133: =E131+E132 -> 1.4 | F133: 46.9 | G133: 219.6 | H133: 0.08 | I133: 0.03 | J133: 0 | K133: 0 | L133: 4 | M133: 231 | N133: 289 | O133: 24 | P133: 15 | Q133: 48 | R133: 3.4 | S133: 0 | T133: 0 | U133: 0
B134: Ужин
A135: 54-6г-2020 | B135: Горошница | C135: 150 | D135: 3.6 | E135: 4.8 | F135: 36.4 | G135: 203.5 | H135: 0.03 | I135: 0.02 | J135: 18.36 | K135: 0.09 | L135: 0 | M135: 152.8 | N135: 46.55 | O135: 106.65 | P135: 23.59 | Q135: 72.57 | R135: 0.49 | S135: 20.76 | T135: 7.24 | U135: 27.19
A136: 54-5м-2020 | B136: Котлета из курицы | C136: 100 | D136: 19.09 | E136: 4.32 | F136: 13.37 | G136: 168.7 | H136: 0.07 | I136: 0.07 | J136: 6.3 | K136: 0 | L136: 1 | M136: 211 | N136: 229 | O136: 32 | P136: 65 | Q136: 143 | R136: 1.3 | S136: 17.1 | T136: 18.5 | U136: 102.31
A137: 54-1гн-2020 | B137: Чай без сахара | C137: 200 | D137: 0.2 | E137: 0 | F137: 0.1 | G137: 1.4 | H137: 0 | I137: 0.01 | J137: 0.3 | K137: 0 | L137: 0.04 | M137: 0.62 | N137: 20.58 | O137: 65.96 | P137: 3.83 | Q137: 7.18 | R137: 0.71 | S137: 0 | T137: 0 | U137: 0
A138: Пром. | B138: Хлеб пшеничный | C138: 30 | D138: 2.3 | E138: 0.2 | F138: 14.8 | G138: 70.3 | H138: 0.03 | I138: 0.01 | J138: 0 | K138: 0 | L138: 0 | M138: 149.7 | N138: 27.9 | O138: 6 | P138: 4.2 | Q138: 19.5 | R138: 0.33 | S138: 0.96 | T138: 1.8 | U138: 4.35
B139: Итого за Ужин | C139: =SUM(C135:C138) -> 480 | D139: =SUM(D135:D138) -> 25.19 | E139: 9.32 | F139: 64.67 | G139: 443.9 | H139: 0.13 | I139: 0.11 | J139: 24.96 | K139: 0.09 | L139: 1.04 | M139: 514.12 | N139: 324.03 | O139: 210.61 | P139: 96.62 | Q139: 242.25 | R139: 2.83 | S139: 38.82 | T139: 27.54 | U139: 133.85
B140: Ужин 2
A141: Пром. | B141: Кефир 3.2% | C141: 200 | D141: 5.8 | E141: 5 | F141: 8 | G141: 100.2 | H141: 0.06 | I141: 0.27 | J141: 26.4 | K141: 0 | L141: 1 | M141: 76 | N141: 242 | O141: 211 | P141: 24 | Q141: 157 | R141: 0.2 | S141: 18 | T141: 3.5 | U141: 40
B142: Итого за ужин 2 | C142: =C141 -> 200 | D142: =D141 -> 5.8 | E142: 5 | F142: 8 | G142: 100.2 | H142: 0.06 | I142: 0.27 | J142: 26.4 | K142: 0 | L142: 1 | M142: 76 | N142: 242 | O142: 211 | P142: 24 | Q142: 157 | R142: 0.2 | S142: 18 | T142: 3.5 | U142: 40
B143: Итого за день | C143: =C120+C129+C133+C139+C142 -> 2300 | D143: =D120+D129+D133+D139+D142 -> 69.74 | E143: 43.16 | F143: 258.46 | G143: 1701.7 | H143: 0.76 | I143: 0.86 | J143: 271.66 | K143: 0.45 | L143: 36.96 | M143: 1710.06 | N143: 2734.11 | O143: 931.74 | P143: 354.62 | Q143: 1035.41 | R143: 14.32 | S143: 135.26 | T143: 64.5 | U143: 270.68
A145: 5 день, 1 неделя
A146: № рецептуры | B146: Прием пищи, наименование блюда | C146: Масса | D146: Пищевые вещества | G146: Энергетическая ценность | H146: Витамины | M146: Минеральные вещества
D147: Белки | E147: Жиры | F147: Углеводы | H147: B1 | I147: B2 | J147: A | K147: D | L147: C | M147: Na | N147: K | O147: Ca | P147: Mg | Q147: P | R147: Fe | S147: I | T147: Se | U147: F
C148: г | D148: г | E148: г | F148: г | G148: ккал | H148: мг | I148: мг | J148: мкг рет.экв | K148: мкг | L148: мг | M148: мг | N148: мг | O148: мг | P148: мг | Q148: мг | R148: мг | S148: мкг | T148: мкг | U148: мкг
B149: Завтрак
A150: 53-19з-2020 | B150: Масло сливочное (порциями) | C150: 10 | D150: 0.08 | E150: 7.25 | F150: 0.13 | G150: 66.1 | H150: 0 | I150: 0.01 | J150: 27 | K150: 0.13 | L150: 0 | M150: 1.14 | N150: 2.49 | O150: 2.11 | P150: 0 | Q150: 2.61 | R150: 0.02 | S150: 0 | T150: 0.1 | U150: 0.3
A151: 54-16к-2020 | B151: Каша "Дружба" | C151: 160 | D151: 3.99 | E151: 4.72 | F151: 19.2 | G151: 135.1 | H151: 0.06 | I151: 0.1 | J151: 21.73 | K151: 0.05 | L151: 0 | M151: 268 | N151: 125 | O151: 110 | P151: 21 | Q151: 100 | R151: 0.4 | S151: 39.91 | T151: 3.2 | U151: 24.89
A152: 54-21гн-2020 | B152: Какао с молоком | C152: 200 | D152: 4.7 | E152: 3.5 | F152: 12.5 | G152: 100.4 | H152: 0.04 | I152: 0.16 | J152: 17.25 | K152: 0 | L152: 0.68 | M152: 49.95 | N152: 220.33 | O152: 167.68 | P152: 34.32 | Q152: 130.28 | R152: 1.09 | S152: 11.7 | T152: 2.29 | U152: 38.25
A153: Пром. | B153: Хлеб пшеничный | C153: 30 | D153: 2.3 | E153: 0.2 | F153: 14.8 | G153: 70.3 | H153: 0.03 | I153: 0.01 | J153: 0 | K153: 0 | L153: 0 | M153: 149.7 | N153: 27.9 | O153: 6 | P153: 4.2 | Q153: 19.5 | R153: 0.33 | S153: 0.96 | T153: 1.8 | U153: 4.35
B154: Итого за Завтрак | C154: =C150+C151+C152+C153 -> 400 | D154: =D150+D151+D152+D153 -> 11.07 | E154: 15.67 | F154: 46.63 | G154: 371.9 | H154: 0.13 | I154: 0.28 | J154: 65.98 | K154: 0.18 | L154: 0.68 | M154: 468.79 | N154: 375.72 | O154: 285.79 | P154: 59.52 | Q154: 252.39 | R154: 1.84 | S154: 52.57 | T154: 7.39 | U154: 67.79
B155: Обед
A156: № Т/к 40 | B156: Салат картофельный с морковью, зеленым горошком и растительным маслом | C156: 60 | D156: 1.2 | E156: 3.7 | F156: 7 | G156: 66.9 | H156: 0 | I156: 0 | J156: 0.4 | K156: 0 | L156: 4.5 | M156: 0 | N156: 0 | O156: 13.1 | P156: 15 | Q156: 32.5 | R156: 0.6 | S156: 0 | T156: 0 | U156: 0
A157: 54-8с-2020 | B157: Суп гороховый | C157: 200 | D157: 6.7 | E157: 4.6 | F157: 16.3 | G157: 133.1 | H157: 0.14 | I157: 0.05 | J157: 97.19 | K157: 0 | L157: 4.77 | M157: 95.82 | N157: 382.43 | O157: 26.94 | P157: 29 | Q157: 80.47 | R157: 1.48 | S157: 15.96 | T157: 2.01 | U157: 28.88
A158: 54-11м-2020 | B158: плов из говядины | C158: 160/40 | D158: 11.7 | E158: 9.35 | F158: 26.58 | G158: 234 | H158: 0.07 | I158: 0.12 | J158: 261.6 | K158: 0.1 | L158: 0.72 | M158: 276.68 | N158: 267.36 | O158: 116.58 | P158: 43.81 | Q158: 193.2 | R158: 2.21 | S158: 38.67 | T158: 7.35 | U158: 81.73
A159: 54-2хн-2020 | B159: компот из кураги | C159: 200 | D159: 1 | E159: 0.1 | F159: 15.6 | G159: 66.9 | H159: 0.01 | I159: 0.03 | J159: 69.96 | K159: 0 | L159: 0.32 | M159: 2.64 | N159: 285.2 | O159: 90.5 | P159: 18.27 | Q159: 25.4 | R159: 0.58 | S159: 0 | T159: 0 | U159: 0
A160: Пром. | B160: Хлеб пшеничный | C160: 20 | D160: 1.52 | E160: 0.16 | F160: 9.84 | G160: 46.9 | H160: 0.02 | I160: 0.01 | J160: 0 | K160: 0 | L160: 0 | M160: 100 | N160: 19 | O160: 4 | P160: 3 | Q160: 13 | R160: 0.2 | S160: 0.64 | T160: 1.2 | U160: 2.9
A161: Пром. | B161: Хлеб ржаной | C161: 20 | D161: 1.3 | E161: 0.2 | F161: 6.7 | G161: 34.2 | H161: 0.04 | I161: 0.02 | J161: 0 | K161: 0 | L161: 0 | M161: 122 | N161: 49 | O161: 7 | P161: 9.4 | Q161: 31.6 | R161: 0.78 | S161: 0 | T161: 6.18 | U161: 0
A162: 54-10в-2020 | B162: Булочка ванильная | C162: 60 | D162: 4.7 | E162: 4 | F162: 30.5 | G162: 176.9 | H162: 0.06 | I162: 0.03 | J162: 19.12 | K162: 0.14 | L162: 0 | M162: 240.68 | N162: 50.54 | O162: 17.63 | P162: 6.52 | Q162: 40.93 | R162: 0.57 | S162: 33.36 | T162: 3.15 | U162: 11.03
B163: Итого за Обед | C163: 760 | D163: =SUM(D156:D162) -> 28.12 | E163: =SUM(E156:E162) -> 22.11 | F163: 112.52 | G163: 758.9 | H163: 0.34 | I163: 0.26 | J163: 448.27 | K163: 0.24 | L163: 10.31 | M163: 837.82 | N163: 1053.53 | O163: 275.75 | P163: 125 | Q163: 417.1 | R163: 6.42 | S163: 88.63 | T163: 19.89 | U163: 124.54
B164: Полдник
A165: Пром. | B165: Сок персиковый | C165: 200 | D165: 0.6 | E165: 0 | F165: 33 | G165: 134.4 | H165: 0.03 | I165: 0.06 | J165: 60 | K165: 0 | L165: 5 | M165: 9 | N165: 252 | O165: 9 | P165: 21 | Q165: 26 | R165: 0.3 | S165: 0 | T165: 0 | U165: 0
A166: Пром. | B166: Пряник | C166: 30 | D166: 1.8 | E166: 1.4 | F166: 22.5 | G166: 109.8 | H166: 0.02 | I166: 0.01 | J166: 0 | K166: 0 | L166: 0 | M166: 0.6 | N166: 21.3 | O166: 3.3 | P166: 2.7 | Q166: 15 | R166: 0.24 | S166: 0 | T166: 0 | U166: 0
B167: Итого за Полдник | C167: =C165+C166 -> 230 | D167: =D165+D166 -> 2.4 | E167: 1.4 | F167: 55.5 | G167: 244.2 | H167: 0.05 | I167: 0.07 | J167: 60 | K167: 0 | L167: 5 | M167: 9.6 | N167: 273.3 | O167: 12.3 | P167: 23.7 | Q167: 41 | R167: 0.54 | S167: 0 | T167: 0 | U167: 0
B168: Ужин
A169: Рец. По сборнику | B169: Пельмени мясные отварные П/Ф | C169: 200 | D169: 10.34 | E169: 12.175 | F169: 20.34 | G169: 237 | H169: 0.159 | I169: 0 | J169: 0.18 | K169: 0 | L169: 0.491 | M169: 0 | N169: 0 | O169: 79.453 | P169: 10.579 | Q169: 239.018 | R169: 0.01 | S169: 0 | T169: 0 | U169: 0
A170: 54-2гн-2020 | B170: Чай с сахаром | C170: 200 | D170: 0.2 | E170: 0 | F170: 6.4 | G170: 26.8 | H170: 0 | I170: 0.01 | J170: 0.3 | K170: 0 | L170: 0.04 | M170: 0.68 | N170: 20.76 | O170: 66.08 | P170: 3.83 | Q170: 7.18 | R170: 0.73 | S170: 0 | T170: 0 | U170: 0
A171: Пром. | B171: Хлеб пшеничный | C171: 30 | D171: 2.3 | E171: 0.2 | F171: 14.8 | G171: 70.3 | H171: 0.03 | I171: 0.01 | J171: 0 | K171: 0 | L171: 0 | M171: 149.7 | N171: 27.9 | O171: 6 | P171: 4.2 | Q171: 19.5 | R171: 0.33 | S171: 0.96 | T171: 1.8 | U171: 4.35
A172: Пром. | B172: Хлеб ржаной | C172: 20 | D172: 1.3 | E172: 0.2 | F172: 6.7 | G172: 34.2 | H172: 0.04 | I172: 0.02 | J172: 0 | K172: 0 | L172: 0 | M172: 122 | N172: 49 | O172: 7 | P172: 9.4 | Q172: 31.6 | R172: 0.78 | S172: 0 | T172: 6.18 | U172: 0
B173: Итого за Ужин | C173: =C169+C170+C171+C172 -> 450 | D173: =D169+D170+D171+D172 -> 14.14 | E173: 12.575 | F173: 48.24 | G173: 368.3 | H173: 0.229 | I173: 0.04 | J173: 0.48 | K173: 0 | L173: 0.531 | M173: 272.38 | N173: 97.66 | O173: 158.533 | P173: 28.009 | Q173: 297.298 | R173: 1.85 | S173: 0.96 | T173: 7.98 | U173: 4.35
B174: Ужин 2
A175: Пром. | B175: Ряженка 2.5% | C175: 200 | D175: 5.8 | E175: 5 | F175: 8.4 | G175: 101.8 | H175: 0.03 | I175: 0.21 | J175: 26.4 | K175: 0 | L175: 0 | M175: 76 | N175: 242 | O175: 218 | P175: 24 | Q175: 160 | R175: 0.2 | S175: 18 | T175: 1.8 | U175: 40
B176: Итого за ужин 2 | C176: =C175 -> 200 | D176: =D175 -> 5.8 | E176: 5 | F176: 8.4 | G176: 101.8 | H176: 0.03 | I176: 0.21 | J176: 26.4 | K176: 0 | L176: 0 | M176: 76 | N176: 242 | O176: 218 | P176: 24 | Q176: 160 | R176: 0.2 | S176: 18 | T176: 1.8 | U176: 40
B177: Итого за день | C177: =C154+C163+C167+C173+C176 -> 2040 | D177: 61.53 | E177: 56.755 | F177: 271.29 | G177: 1845.1 | H177: 0.779 | I177: 0.86 | J177: 601.13 | K177: 0.42 | L177: 16.521 | M177: 1664.59 | N177: 2042.21 | O177: 950.373 | P177: 260.229 | Q177: 1167.788 | R177: 10.85 | S177: 160.16 | T177: 37.06 | U177: 236.68
A179: 7 день, 2 неделя
A180: № рецептуры | B180: Прием пищи, наименование блюда | C180: Масса | D180: Пищевые вещества | G180: Энергетическая ценность | H180: Витамины | M180: Минеральные вещества
D181: Белки | E181: Жиры | F181: Углеводы | H181: B1 | I181: B2 | J181: A | K181: D | L181: C | M181: Na | N181: K | O181: Ca | P181: Mg | Q181: P | R181: Fe | S181: I | T181: Se | U181: F
C182: г | D182: г | E182: г | F182: г | G182: ккал | H182: мг | I182: мг | J182: мкг рет.экв | K182: мкг | L182: мг | M182: мг | N182: мг | O182: мг | P182: мг | Q182: мг | R182: мг | S182: мкг | T182: мкг | U182: мкг
B183: Завтрак
A184: 53-19з-2020 | B184: Масло сливочное (порциями) | C184: 10 | D184: 0.08 | E184: 7.25 | F184: 0.13 | G184: 66.1 | H184: 0 | I184: 0.01 | J184: 27 | K184: 0.13 | L184: 0 | M184: 1.14 | N184: 2.49 | O184: 2.11 | P184: 0 | Q184: 2.61 | R184: 0.02 | S184: 0 | T184: 0.1 | U184: 0.3
A185: 54-22к-2020 | B185: Каша жидкая молочная овсяная | C185: 150 | D185: 5.1 | E185: 5.6 | F185: 18.5 | G185: 144.5 | H185: 0.11 | I185: 0.13 | J185: 21.81 | K185: 0.05 | L185: 0.46 | M185: 260.87 | N185: 177.7 | O185: 123.12 | P185: 34.24 | Q185: 140.9 | R185: 0.89 | S185: 39 | T185: 7.47 | U185: 37.21
A186: 54-4гн-2020 | B186: Чай с молоком и сахаром | C186: 200 | D186: 1.6 | E186: 1.1 | F186: 8.6 | G186: 50.9 | H186: 0.01 | I186: 0.07 | J186: 6.9 | K186: 0 | L186: 0.3 | M186: 19.68 | N186: 81.35 | O186: 103.48 | P186: 9.92 | Q186: 46.33 | R186: 0.78 | S186: 4.5 | T186: 0.88 | U186: 10
A187: Пром. | B187: Хлеб пшеничный | C187: 30 | D187: 2.3 | E187: 0.2 | F187: 14.8 | G187: 70.3 | H187: 0.03 | I187: 0.01 | J187: 0 | K187: 0 | L187: 0 | M187: 149.7 | N187: 27.9 | O187: 6 | P187: 4.2 | Q187: 19.5 | R187: 0.33 | S187: 0.96 | T187: 1.8 | U187: 4.35
B188: Итого за Завтрак | C188: =C184+C185+C186+C187 -> 390 | D188: =D184+D185+D186+D187 -> 9.08 | E188: 14.15 | F188: 42.03 | G188: 331.8 | H188: 0.15 | I188: 0.22 | J188: 55.71 | K188: 0.18 | L188: 0.76 | M188: 431.39 | N188: 289.44 | O188: 234.71 | P188: 48.36 | Q188: 209.34 | R188: 2.02 | S188: 44.46 | T188: 10.25 | U188: 51.86
B189: Обед
A190: № Т/к 40 | B190: Салат картофельный с морковью, зеленым горошком и растительным маслом | C190: 60 | D190: 1.2 | E190: 3.7 | F190: 7 | G190: 66.9 | H190: 0 | I190: 0 | J190: 0.4 | K190: 0 | L190: 4.5 | M190: 0 | N190: 0 | O190: 13.1 | P190: 15 | Q190: 32.5 | R190: 0.6 | S190: 0 | T190: 0 | U190: 0
A191: 62 | B191: Борщ | C191: 200 | D191: 13 | E191: 13.9 | F191: 15.1 | G191: 127 | H191: 0.1 | I191: 0 | J191: 0.2 | K191: 0 | L191: 10.7 | M191: 0 | N191: 0 | O191: 43.5 | P191: 26.9 | Q191: 57.4 | R191: 1.4 | S191: 0 | T191: 0 | U191: 0
A192: 54-4г-2020 | B192: Каша гречневая рассыпчатая | C192: 150 | D192: 8.2 | E192: 6.3 | F192: 35.9 | G192: 233.7 | H192: 0.21 | I192: 0.12 | J192: 19.19 | K192: 0.09 | L192: 0 | M192: 149.45 | N192: 219.36 | O192: 46.62 | P192: 120.16 | Q192: 180.99 | R192: 4.05 | S192: 22.28 | T192: 3.52 | U192: 16.06
A193: №243 | B193: Сосиски говяжьи отварные, п/ф (2 шт) | C193: 100 | D193: 13.2 | E193: 22.84 | F193: 1.8 | G193: 202.15 | H193: 0 | I193: 0 | J193: 0.08 | K193: 0.01 | L193: 0 | M193: 0 | N193: 0 | O193: 7.44 | P193: 15.51 | Q193: 137.39 | R193: 1.74 | S193: 0 | T193: 0 | U193: 0
A194: 54-2гн-2020 | B194: Чай с сахаром | C194: 200 | D194: 0.2 | E194: 0 | F194: 6.4 | G194: 26.8 | H194: 0 | I194: 0.01 | J194: 0.3 | K194: 0 | L194: 0.04 | M194: 0.68 | N194: 20.76 | O194: 66.08 | P194: 3.83 | Q194: 7.18 | R194: 0.73 | S194: 0 | T194: 0 | U194: 0
A195: № Т/К 400 | B195: Блины фаршированные (вишня, клубника) П/Ф (70гр) 2 шт | C195: 140 | D195: 4.2 | E195: 5.6 | F195: 35 | G195: 210 | H195: 0.06 | I195: 0 | J195: 0 | K195: 0 | L195: 0 | M195: 0 | N195: 0 | O195: 32.44 | P195: 13.18 | Q195: 85 | R195: 1.44 | S195: 0 | T195: 0 | U195: 0
A196: Пром. | B196: Хлеб ржаной | C196: 20 | D196: 1.3 | E196: 0.2 | F196: 6.7 | G196: 34.2 | H196: 0.04 | I196: 0.02 | J196: 0 | K196: 0 | L196: 0 | M196: 122 | N196: 49 | O196: 7 | P196: 9.4 | Q196: 31.6 | R196: 0.78 | S196: 0 | T196: 6.18 | U196: 0
B197: Итого за Обед | C197: =C190+C191+C192+C193+C194+C195+C196 -> 870 | D197: =D190+D191+D192+D193+D194+D195+D196 -> 41.3 | E197: =E190+E191+E192+E193+E194+E195+E196 -> 52.54 | F197: 107.9 | G197: 900.75 | H197: 0.41 | I197: 0.15 | J197: 20.17 | K197: 0.1 | L197: 15.24 | M197: 272.13 | N197: 289.12 | O197: 216.18 | P197: 203.98 | Q197: 532.06 | R197: 10.74 | S197: 22.28 | T197: 9.7 | U197: 16.06
B198: Полдник
A199: Пром. | B199: Сок яблочный | C199: 200 | D199: 1 | E199: 0.2 | F199: 20.2 | G199: 86.6 | H199: 0.02 | I199: 0.02 | J199: 0 | K199: 0 | L199: 4 | M199: 12 | N199: 240 | O199: 14 | P199: 8 | Q199: 14 | R199: 2.8 | S199: 0 | T199: 0 | U199: 0
A200: Пром. | B200: Сушка простая | C200: 30 | D200: 3.27 | E200: 0.39 | F200: 20.64 | G200: 99.1 | H200: 0.05 | I200: 0.02 | J200: 0 | K200: 0 | L200: 0 | M200: 137.94 | N200: 46.06 | O200: 7.92 | P200: 12.01 | Q200: 31.58 | R200: 0.76 | S200: 0 | T200: 0 | U200: 0
B201: Итого за Полдник | C201: =C199+C200 -> 230 | D201: =D199+D200 -> 4.27 | E201: 0.59 | F201: 40.84 | G201: 185.7 | H201: 0.07 | I201: 0.04 | J201: 0 | K201: 0 | L201: 4 | M201: 149.94 | N201: 286.06 | O201: 21.92 | P201: 20.01 | Q201: 45.58 | R201: 3.56 | S201: 0 | T201: 0 | U201: 0
B202: Ужин
A203: 54-6г-2020 | B203: Рис отварной | C203: 150 | D203: 5.3 | E203: 4.9 | F203: 32.8 | G203: 196.8 | H203: 0.06 | I203: 0.02 | J203: 18.36 | K203: 0.09 | L203: 0 | M203: 149.04 | N203: 53.8 | O203: 105.83 | P203: 7.19 | Q203: 40.7 | R203: 0.73 | S203: 20.77 | T203: 0.06 | U203: 11.92
A204: 54-25м-2020 | B204: Курица тушеная с морковью | C204: 40/60 | D204: 14.12 | E204: 5.78 | F204: 4.46 | G204: 126.4 | H204: 0.04 | I204: 0.05 | J204: 286.31 | K204: 0.02 | L204: 0 | M204: 249 | N204: 209 | O204: 33 | P204: 55 | Q204: 112 | R204: 0.9 | S204: 35.07 | T204: 12 | U204: 94.93
A205: 54-1хн-2020 | B205: Компот из смеси сухофруктов | C205: 200 | D205: 0.5 | E205: 0 | F205: 19.8 | G205: 81 | H205: 0 | I205: 0 | J205: 15 | K205: 0 | L205: 0.02 | M205: 0.05 | N205: 0.17 | O205: 108.08 | P205: 2.11 | Q205: 4.31 | R205: 0.08 | S205: 0 | T205: 0 | U205: 0
A206: Пром. | B206: Хлеб пшеничный | C206: 30 | D206: 2.3 | E206: 0.2 | F206: 14.8 | G206: 70.3 | H206: 0.03 | I206: 0.01 | J206: 0 | K206: 0 | L206: 0 | M206: 149.7 | N206: 27.9 | O206: 6 | P206: 4.2 | Q206: 19.5 | R206: 0.33 | S206: 0.96 | T206: 1.8 | U206: 4.35
A207: Пром. | B207: Хлеб ржаной | C207: 20 | D207: 1.3 | E207: 0.2 | F207: 6.7 | G207: 34.2 | H207: 0.04 | I207: 0.02 | J207: 0 | K207: 0 | L207: 0 | M207: 122 | N207: 49 | O207: 7 | P207: 9.4 | Q207: 31.6 | R207: 0.78 | S207: 0 | T207: 6.18 | U207: 0
... 150 more rows
